[Event "Late-Titled-Tuesday-Blitz-March-19-2024"]
[Site "Chess.com"]
[Date "2024.03.19"]
[Round "4"]
[White "FREZZY23"]
[Black "Revan_2002"]
[Result "0-1"]
[WhiteElo "2378"]
[BlackElo "2572"]
[TimeControl "180+1"]
[EndTime "14:38:46 PDT"]
[Termination "Revan_2002 won by checkmate"]

1. Nf3 {[%clk 0:02:49.7]} 1... Nf6 {[%clk 0:02:50.5]} 2. g3 {[%clk 0:02:49.7]}
2... g6 {[%clk 0:02:46.2]} 3. Bg2 {[%clk 0:02:49.8]} 3... Bg7 {[%clk 0:02:44.4]}
4. O-O {[%clk 0:02:50.3]} 4... O-O {[%clk 0:02:44.3]} 5. d4 {[%clk 0:02:50.9]}
5... d6 {[%clk 0:02:44.5]} 6. c4 {[%clk 0:02:51.3]} 6... Nbd7 {[%clk 0:02:44.3]}
7. Nc3 {[%clk 0:02:51.4]} 7... e5 {[%clk 0:02:42.3]} 8. h3 {[%clk 0:02:51.5]}
8... Re8 {[%clk 0:02:41.3]} 9. e4 {[%clk 0:02:51]} 9... exd4 {[%clk 0:02:39]}
10. Nxd4 {[%clk 0:02:50.9]} 10... c6 {[%clk 0:02:38.4]} 11. Be3 {[%clk
0:02:51.3]} 11... Nc5 {[%clk 0:02:38]} 12. Qc2 {[%clk 0:02:51.5]} 12... a5
{[%clk 0:02:35.8]} 13. Rfd1 {[%clk 0:02:51.7]} 13... Bd7 {[%clk 0:02:35.5]} 14.
Rac1 {[%clk 0:02:50.6]} 14... a4 {[%clk 0:02:33.7]} 15. f4 {[%clk 0:02:48.2]}
15... Qa5 {[%clk 0:02:29.9]} 16. Bf2 {[%clk 0:02:44.8]} 16... Qb4 {[%clk
0:02:21.7]} 17. b3 {[%clk 0:02:38.5]} 17... axb3 {[%clk 0:02:00.2]} 18. axb3
{[%clk 0:02:38]} 18... Nh5 {[%clk 0:01:53.8]} 19. Rb1 {[%clk 0:02:21.3]} 19...
Ne6 {[%clk 0:01:46.8]} 20. Nxe6 {[%clk 0:02:18.1]} 20... Bxe6 {[%clk 0:01:47.7]}
21. Na4 {[%clk 0:02:15.4]} 21... d5 {[%clk 0:01:05.8]} 22. exd5 {[%clk
0:01:52.1]} 22... Bf5 {[%clk 0:01:04.1]} 23. Qc1 {[%clk 0:01:18.6]} 23... Bxb1
{[%clk 0:00:57.7]} 24. dxc6 {[%clk 0:01:16.2]} 24... bxc6 {[%clk 0:00:51.8]} 25.
Qxb1 {[%clk 0:01:11.2]} 25... Rad8 {[%clk 0:00:46.2]} 26. Bxc6 {[%clk
0:01:04.4]} 26... Rxd1+ {[%clk 0:00:21.6]} 27. Qxd1 {[%clk 0:01:05.3]} 27... Rb8
{[%clk 0:00:20.3]} 28. Bb5 {[%clk 0:01:01.5]} 28... Qe7 {[%clk 0:00:16.4]} 29.
Kg2 {[%clk 0:00:56.8]} 29... Rd8 {[%clk 0:00:13.2]} 30. Qf3 {[%clk 0:00:56.6]}
30... Nf6 {[%clk 0:00:12.7]} 31. c5 {[%clk 0:00:55.5]} 31... Ne4 {[%clk
0:00:12.2]} 32. Bc6 {[%clk 0:00:43.9]} 32... Nxf2 {[%clk 0:00:11.7]} 33. Qxf2
{[%clk 0:00:42.1]} 33... Bd4 {[%clk 0:00:12]} 34. Qc2 {[%clk 0:00:40.7]} 34...
Be3 {[%clk 0:00:11]} 35. Qe4 {[%clk 0:00:35.9]} 35... Bxc5 {[%clk 0:00:10.4]}
36. Qxe7 {[%clk 0:00:30.4]} 36... Bxe7 {[%clk 0:00:11.3]} 37. Nb6 {[%clk
0:00:26.9]} 37... Rd2+ {[%clk 0:00:08.8]} 38. Kf3 {[%clk 0:00:26.7]} 38... Rd3+
{[%clk 0:00:09]} 39. Kg4 {[%clk 0:00:24.4]} 39... h5# {[%clk 0:00:07.5]} 0-1

[Event "Late-Titled-Tuesday-Blitz-March-19-2024"]
[Site "Chess.com"]
[Date "2024.03.19"]
[Round "4"]
[White "expii"]
[Black "Schattman"]
[Result "0-1"]
[WhiteElo "2201"]
[BlackElo "2511"]
[TimeControl "180+1"]
[EndTime "14:38:46 PDT"]
[Termination "Schattman won by resignation"]

1. e4 {[%clk 0:02:58.6]} 1... c5 {[%clk 0:02:59.4]} 2. Nf3 {[%clk 0:02:58.1]}
2... e6 {[%clk 0:02:59.9]} 3. d4 {[%clk 0:02:58.7]} 3... cxd4 {[%clk 0:03:00.8]}
4. Nxd4 {[%clk 0:02:59]} 4... Nf6 {[%clk 0:03:01.4]} 5. Nc3 {[%clk 0:02:59.4]}
5... Nc6 {[%clk 0:03:01.9]} 6. g3 {[%clk 0:02:58.8]} 6... Be7 {[%clk 0:02:58.8]}
7. Bg2 {[%clk 0:02:44.6]} 7... O-O {[%clk 0:02:58.6]} 8. O-O {[%clk 0:02:38]}
8... d6 {[%clk 0:02:59]} 9. Nxc6 {[%clk 0:02:37.2]} 9... bxc6 {[%clk 0:02:58.8]}
10. h3 {[%clk 0:02:28.9]} 10... d5 {[%clk 0:02:57.2]} 11. exd5 {[%clk
0:02:28.6]} 11... cxd5 {[%clk 0:02:54.6]} 12. Be3 {[%clk 0:02:16.4]} 12... Rb8
{[%clk 0:02:54.7]} 13. Rb1 {[%clk 0:02:11.8]} 13... Qc7 {[%clk 0:02:48.5]} 14.
Re1 {[%clk 0:02:06.8]} 14... Bc5 {[%clk 0:02:41.3]} 15. Bf4 {[%clk 0:02:03.7]}
15... Bd6 {[%clk 0:02:41]} 16. Bxd6 {[%clk 0:02:02.1]} 16... Qxd6 {[%clk
0:02:40.8]} 17. Ne2 {[%clk 0:01:45.4]} 17... Ba6 {[%clk 0:02:35.5]} 18. c3
{[%clk 0:01:38.9]} 18... Bxe2 {[%clk 0:02:25.9]} 19. Qxe2 {[%clk 0:01:39.8]}
19... Rfc8 {[%clk 0:02:24.7]} 20. Red1 {[%clk 0:01:26.4]} 20... Rb6 {[%clk
0:02:15.6]} 21. Rbc1 {[%clk 0:01:15.6]} 21... Rcb8 {[%clk 0:02:11.8]} 22. b3
{[%clk 0:01:13.1]} 22... Qe7 {[%clk 0:01:06]} 23. c4 {[%clk 0:01:05.5]} 23...
dxc4 {[%clk 0:01:06.4]} 24. Rxc4 {[%clk 0:01:04.7]} 24... Rd6 {[%clk 0:01:06.4]}
25. Rdc1 {[%clk 0:01:03.1]} 25... Rbd8 {[%clk 0:01:05.2]} 26. Rc8 {[%clk
0:00:58]} 26... g6 {[%clk 0:01:00.8]} 27. Rxd8+ {[%clk 0:00:45.9]} 27... Rxd8
{[%clk 0:00:56.4]} 28. Kh2 {[%clk 0:00:41.8]} 28... e5 {[%clk 0:00:50.6]} 29.
Rc6 {[%clk 0:00:39.3]} 29... Rd6 {[%clk 0:00:46.4]} 30. Qc4 {[%clk 0:00:36.9]}
30... Rxc6 {[%clk 0:00:41.3]} 31. Qxc6 {[%clk 0:00:37.8]} 31... e4 {[%clk
0:00:40.1]} 32. Qc8+ {[%clk 0:00:31.4]} 32... Kg7 {[%clk 0:00:39.9]} 33. Qc3
{[%clk 0:00:29.7]} 33... g5 {[%clk 0:00:36.3]} 34. Qe3 {[%clk 0:00:28.5]} 34...
Kg6 {[%clk 0:00:35]} 35. g4 {[%clk 0:00:25.5]} 35... Qe5+ {[%clk 0:00:34.2]} 36.
Qg3 {[%clk 0:00:20.4]} 36... Qd4 {[%clk 0:00:28.8]} 37. h4 {[%clk 0:00:19.4]}
37... h6 {[%clk 0:00:28.4]} 38. h5+ {[%clk 0:00:17]} 38... Kg7 {[%clk
0:00:28.6]} 39. Kh3 {[%clk 0:00:15.2]} 39... Qd1 {[%clk 0:00:22]} 40. f3 {[%clk
0:00:13.7]} 40... e3 {[%clk 0:00:20.8]} 41. Qe5 {[%clk 0:00:09.3]} 41... e2
{[%clk 0:00:19.4]} 42. f4 {[%clk 0:00:10.2]} 42... e1=Q {[%clk 0:00:19.1]} 0-1

[Event "Late-Titled-Tuesday-Blitz-March-19-2024"]
[Site "Chess.com"]
[Date "2024.03.19"]
[Round "4"]
[White "DucksParadise"]
[Black "Romkachess"]
[Result "0-1"]
[WhiteElo "2501"]
[BlackElo "2711"]
[TimeControl "180+1"]
[EndTime "14:38:48 PDT"]
[Termination "Romkachess won on time"]

1. d4 {[%clk 0:03:00.9]} 1... Nf6 {[%clk 0:02:56.7]} 2. c4 {[%clk 0:02:53.7]}
2... e6 {[%clk 0:02:57]} 3. Nf3 {[%clk 0:02:52.1]} 3... b6 {[%clk 0:02:56.8]} 4.
a3 {[%clk 0:02:50.1]} 4... Bb7 {[%clk 0:02:56.5]} 5. Nc3 {[%clk 0:02:49.7]} 5...
d5 {[%clk 0:02:57]} 6. cxd5 {[%clk 0:02:47.6]} 6... Nxd5 {[%clk 0:02:57]} 7. Qc2
{[%clk 0:02:46.9]} 7... Be7 {[%clk 0:02:56.7]} 8. e4 {[%clk 0:02:44.3]} 8...
Nxc3 {[%clk 0:02:56.7]} 9. bxc3 {[%clk 0:02:45.2]} 9... O-O {[%clk 0:02:56.2]}
10. Bd3 {[%clk 0:02:45]} 10... c5 {[%clk 0:02:54.2]} 11. O-O {[%clk 0:02:40.9]}
11... cxd4 {[%clk 0:02:54.1]} 12. cxd4 {[%clk 0:02:41.8]} 12... Nd7 {[%clk
0:02:46.3]} 13. Bb2 {[%clk 0:02:34.5]} 13... Rc8 {[%clk 0:02:45.6]} 14. Qe2
{[%clk 0:02:34.4]} 14... Nf6 {[%clk 0:02:36.7]} 15. Rad1 {[%clk 0:02:16.1]}
15... Rc7 {[%clk 0:02:24.1]} 16. Qe3 {[%clk 0:02:10.5]} 16... Qa8 {[%clk
0:02:19.6]} 17. d5 {[%clk 0:02:08.3]} 17... exd5 {[%clk 0:02:13.6]} 18. e5
{[%clk 0:02:08.3]} 18... Ne4 {[%clk 0:02:11.4]} 19. Nd4 {[%clk 0:02:04.6]} 19...
Rfc8 {[%clk 0:01:48.5]} 20. e6 {[%clk 0:01:44.1]} 20... Bf6 {[%clk 0:01:38.8]}
21. exf7+ {[%clk 0:01:32.4]} 21... Rxf7 {[%clk 0:01:38.5]} 22. f3 {[%clk
0:01:23.6]} 22... Nc5 {[%clk 0:01:31.4]} 23. Bb1 {[%clk 0:01:11.1]} 23... Re8
{[%clk 0:01:29.9]} 24. Qf2 {[%clk 0:01:02.2]} 24... Rfe7 {[%clk 0:01:26]} 25.
Qg3 {[%clk 0:00:52]} 25... Qb8 {[%clk 0:01:18.6]} 26. Qh3 {[%clk 0:00:48.7]}
26... g6 {[%clk 0:00:54.7]} 27. Rd2 {[%clk 0:00:21.2]} 27... Qc8 {[%clk
0:00:53.2]} 28. Nf5 {[%clk 0:00:18.5]} 28... Re6 {[%clk 0:00:43.4]} 29. Nh6+
{[%clk 0:00:15.5]} 29... Kg7 {[%clk 0:00:36.7]} 30. Nf5+ {[%clk 0:00:10]} 30...
gxf5 {[%clk 0:00:33.6]} 31. Bxf5 {[%clk 0:00:08.4]} 31... Bxb2 {[%clk 0:00:15]}
32. Qxh7+ {[%clk 0:00:07.3]} 32... Kf6 {[%clk 0:00:15.5]} 33. Qg6+ {[%clk
0:00:03.6]} 33... Ke7 {[%clk 0:00:16]} 34. Bxe6 {[%clk 0:00:03.5]} 34... Nxe6
{[%clk 0:00:16.2]} 35. Rxb2 {[%clk 0:00:02.3]} 35... Qc5+ {[%clk 0:00:16.4]} 36.
Kh1 {[%clk 0:00:02.2]} 36... Kd7 {[%clk 0:00:16.2]} 37. Re2 {[%clk 0:00:01.3]}
37... Re7 {[%clk 0:00:16.1]} 38. Rfe1 {[%clk 0:00:01]} 38... Qd6 {[%clk
0:00:15.3]} 0-1

[Event "Late-Titled-Tuesday-Blitz-March-19-2024"]
[Site "Chess.com"]
[Date "2024.03.19"]
[Round "4"]
[White "ashookk"]
[Black "DryCounty"]
[Result "0-1"]
[WhiteElo "2347"]
[BlackElo "2658"]
[TimeControl "180+1"]
[EndTime "14:38:49 PDT"]
[Termination "DryCounty won on time"]

1. Nf3 {[%clk 0:03:00.9]} 1... Nf6 {[%clk 0:02:59.4]} 2. c4 {[%clk 0:03:01.8]}
2... g6 {[%clk 0:02:59.2]} 3. Nc3 {[%clk 0:03:01.7]} 3... Bg7 {[%clk 0:02:59.6]}
4. e4 {[%clk 0:03:02.3]} 4... O-O {[%clk 0:02:59.6]} 5. d4 {[%clk 0:03:03.2]}
5... d6 {[%clk 0:02:59.7]} 6. Be2 {[%clk 0:03:04.1]} 6... e5 {[%clk 0:02:59.1]}
7. O-O {[%clk 0:03:04.7]} 7... Nbd7 {[%clk 0:02:58.1]} 8. Re1 {[%clk 0:03:03.6]}
8... c6 {[%clk 0:02:48.7]} 9. Bf1 {[%clk 0:03:03.4]} 9... exd4 {[%clk
0:02:45.5]} 10. Nxd4 {[%clk 0:03:02.7]} 10... Re8 {[%clk 0:02:46]} 11. f3 {[%clk
0:03:02.3]} 11... Qb6 {[%clk 0:02:43.7]} 12. Na4 {[%clk 0:02:47.3]} 12... Qa5
{[%clk 0:02:40]} 13. Bd2 {[%clk 0:02:35.3]} 13... Qc7 {[%clk 0:02:38.1]} 14. Be3
{[%clk 0:02:29.8]} 14... a6 {[%clk 0:02:26.9]} 15. Nc3 {[%clk 0:02:27.2]} 15...
d5 {[%clk 0:02:23.2]} 16. cxd5 {[%clk 0:02:26.7]} 16... cxd5 {[%clk 0:02:22.2]}
17. Rc1 {[%clk 0:02:22.4]} 17... Qd6 {[%clk 0:02:11.7]} 18. Nb3 {[%clk
0:02:15.4]} 18... b5 {[%clk 0:02:03.7]} 19. a3 {[%clk 0:02:01.8]} 19... Bb7
{[%clk 0:02:03.2]} 20. Na5 {[%clk 0:02:00]} 20... Qc7 {[%clk 0:01:35.9]} 21. b4
{[%clk 0:01:44.5]} 21... Qb8 {[%clk 0:01:33.4]} 22. Nxd5 {[%clk 0:01:34.7]}
22... Nxd5 {[%clk 0:01:08.6]} 23. exd5 {[%clk 0:01:35.6]} 23... Rxe3 {[%clk
0:01:07]} 24. Rxe3 {[%clk 0:01:34.2]} 24... Qa7 {[%clk 0:01:06.9]} 25. Kh1
{[%clk 0:01:04.9]} 25... Qxe3 {[%clk 0:01:06.3]} 26. Nxb7 {[%clk 0:01:04.4]}
26... Bd4 {[%clk 0:00:58.8]} 27. Bd3 {[%clk 0:00:56.4]} 27... Rb8 {[%clk
0:00:46.5]} 28. Na5 {[%clk 0:00:55.1]} 28... Re8 {[%clk 0:00:39.9]} 29. Nc6
{[%clk 0:00:50.1]} 29... Bb2 {[%clk 0:00:37.3]} 30. Rb1 {[%clk 0:00:38.3]} 30...
Bf6 {[%clk 0:00:31.2]} 31. a4 {[%clk 0:00:35.9]} 31... Nb6 {[%clk 0:00:27]} 32.
axb5 {[%clk 0:00:34.6]} 32... Nxd5 {[%clk 0:00:25.9]} 33. Be4 {[%clk 0:00:19.7]}
33... Nc3 {[%clk 0:00:24.3]} 34. Qd7 {[%clk 0:00:20.3]} 34... Rxe4 {[%clk
0:00:14.4]} 35. fxe4 {[%clk 0:00:10.1]} 35... Nxb1 {[%clk 0:00:14.3]} 36. g3
{[%clk 0:00:08.7]} 36... axb5 {[%clk 0:00:13.5]} 37. e5 {[%clk 0:00:07.2]} 37...
Qe4+ {[%clk 0:00:13.3]} 38. Kg1 {[%clk 0:00:06.7]} 38... Bg5 {[%clk 0:00:12.4]}
0-1

[Event "Late-Titled-Tuesday-Blitz-March-19-2024"]
[Site "Chess.com"]
[Date "2024.03.19"]
[Round "4"]
[White "Noki102"]
[Black "Kombinator01"]
[Result "0-1"]
[WhiteElo "2571"]
[BlackElo "2424"]
[TimeControl "180+1"]
[EndTime "14:38:50 PDT"]
[Termination "Kombinator01 won by resignation"]

1. b4 {[%clk 0:03:00.9]} 1... e5 {[%clk 0:02:53.1]} 2. Bb2 {[%clk 0:03:01.2]}
2... Bxb4 {[%clk 0:02:52.2]} 3. Bxe5 {[%clk 0:03:01.6]} 3... Nf6 {[%clk
0:02:51]} 4. c3 {[%clk 0:03:00.6]} 4... Ba5 {[%clk 0:02:44.7]} 5. e3 {[%clk
0:02:59.2]} 5... O-O {[%clk 0:02:36.2]} 6. Bd3 {[%clk 0:02:46.2]} 6... d5 {[%clk
0:02:35.3]} 7. Ne2 {[%clk 0:02:44.1]} 7... c5 {[%clk 0:02:33.3]} 8. O-O {[%clk
0:02:39.7]} 8... Nc6 {[%clk 0:02:33.6]} 9. Bg3 {[%clk 0:02:38.4]} 9... Bc7
{[%clk 0:02:32.4]} 10. Bc2 {[%clk 0:02:35.8]} 10... b6 {[%clk 0:02:23.3]} 11. d4
{[%clk 0:02:33.9]} 11... Be6 {[%clk 0:02:09.9]} 12. Nf4 {[%clk 0:02:28.3]} 12...
Rc8 {[%clk 0:02:06.2]} 13. Nd2 {[%clk 0:02:25.9]} 13... Na5 {[%clk 0:02:04.4]}
14. Bd3 {[%clk 0:02:17.1]} 14... Bd6 {[%clk 0:01:41.6]} 15. Re1 {[%clk 0:01:56]}
15... Re8 {[%clk 0:01:39.4]} 16. Qf3 {[%clk 0:01:47.6]} 16... Bg4 {[%clk
0:01:28.7]} 17. Nxd5 {[%clk 0:01:08.6]} 17... Bxf3 {[%clk 0:01:27.1]} 18. Nxf6+
{[%clk 0:01:07]} 18... Qxf6 {[%clk 0:01:27.7]} 19. gxf3 {[%clk 0:01:05.3]} 19...
Bxg3 {[%clk 0:01:27.5]} 20. hxg3 {[%clk 0:01:05.3]} 20... cxd4 {[%clk
0:01:27.2]} 21. cxd4 {[%clk 0:01:04.5]} 21... Rc3 {[%clk 0:01:23.1]} 22. Ne4
{[%clk 0:00:57.4]} 22... Qc6 {[%clk 0:01:14.2]} 23. Nxc3 {[%clk 0:00:46.6]}
23... Qxc3 {[%clk 0:01:15.1]} 24. Be4 {[%clk 0:00:45.7]} 24... g6 {[%clk
0:01:07.4]} 25. Rec1 {[%clk 0:00:44]} 25... Qa3 {[%clk 0:01:03.7]} 26. Bd5
{[%clk 0:00:31.2]} 26... Kg7 {[%clk 0:01:01.1]} 27. Rc7 {[%clk 0:00:24.1]} 27...
Re7 {[%clk 0:00:57.7]} 28. Rac1 {[%clk 0:00:21.7]} 28... Qd6 {[%clk 0:00:55.7]}
29. Rxe7 {[%clk 0:00:19]} 29... Qxe7 {[%clk 0:00:55.5]} 30. e4 {[%clk
0:00:19.4]} 30... Qa3 {[%clk 0:00:53.4]} 31. Rc7 {[%clk 0:00:18.2]} 31... Qxf3
{[%clk 0:00:53.3]} 32. Rxa7 {[%clk 0:00:14.6]} 32... Qd1+ {[%clk 0:00:44.3]} 33.
Kg2 {[%clk 0:00:12.3]} 33... Qxd4 {[%clk 0:00:45.2]} 34. Rxf7+ {[%clk
0:00:12.2]} 34... Kh6 {[%clk 0:00:45.8]} 35. Rd7 {[%clk 0:00:08.2]} 35... Nc4
{[%clk 0:00:41.5]} 36. Rf7 {[%clk 0:00:06.1]} 36... Ne5 {[%clk 0:00:39.5]} 37.
Rf4 {[%clk 0:00:05.3]} 37... Nd3 {[%clk 0:00:37.1]} 38. Rf8 {[%clk 0:00:03]}
38... Nb4 {[%clk 0:00:36.1]} 39. Rf3 {[%clk 0:00:02.2]} 39... Nxd5 {[%clk
0:00:34.9]} 40. exd5 {[%clk 0:00:02.3]} 40... Qxd5 {[%clk 0:00:35.3]} 41. g4
{[%clk 0:00:03.2]} 41... Qxa2 {[%clk 0:00:33.7]} 42. Kg3 {[%clk 0:00:04.1]}
42... Qd5 {[%clk 0:00:32.9]} 43. Rf8 {[%clk 0:00:03.6]} 43... Qd6+ {[%clk
0:00:32.4]} 44. Rf4 {[%clk 0:00:01.6]} 44... g5 {[%clk 0:00:31.2]} 0-1

[Event "Late-Titled-Tuesday-Blitz-March-19-2024"]
[Site "Chess.com"]
[Date "2024.03.19"]
[Round "4"]
[White "cthulhuuu"]
[Black "azikom"]
[Result "0-1"]
[WhiteElo "2412"]
[BlackElo "2598"]
[TimeControl "180+1"]
[EndTime "14:38:53 PDT"]
[Termination "azikom won by checkmate"]

1. e4 {[%clk 0:03:00]} 1... c5 {[%clk 0:03:00.9]} 2. Nf3 {[%clk 0:02:59.4]} 2...
e6 {[%clk 0:03:01.3]} 3. d3 {[%clk 0:02:59.5]} 3... Nc6 {[%clk 0:02:59.8]} 4. g3
{[%clk 0:02:59.9]} 4... d5 {[%clk 0:03:00.2]} 5. Nbd2 {[%clk 0:03:00.6]} 5...
Nf6 {[%clk 0:03:00.6]} 6. Bg2 {[%clk 0:03:01.5]} 6... b6 {[%clk 0:03:01.1]} 7.
O-O {[%clk 0:03:00.8]} 7... Bb7 {[%clk 0:03:01.6]} 8. Re1 {[%clk 0:03:01.3]}
8... Be7 {[%clk 0:03:01.6]} 9. c3 {[%clk 0:02:59.9]} 9... Qc7 {[%clk 0:03:00.7]}
10. a3 {[%clk 0:02:59.3]} 10... h6 {[%clk 0:02:59.6]} 11. h4 {[%clk 0:02:59.2]}
11... dxe4 {[%clk 0:02:54.9]} 12. dxe4 {[%clk 0:02:57.9]} 12... O-O {[%clk
0:02:55.2]} 13. e5 {[%clk 0:02:56.9]} 13... Nd7 {[%clk 0:02:54.9]} 14. Qe2
{[%clk 0:02:56.9]} 14... Rfd8 {[%clk 0:02:55.2]} 15. Ne4 {[%clk 0:02:45.4]}
15... Ndxe5 {[%clk 0:02:51.1]} 16. Nxe5 {[%clk 0:02:46.3]} 16... Qxe5 {[%clk
0:02:48.7]} 17. Bf4 {[%clk 0:02:33.9]} 17... Qf5 {[%clk 0:02:48.5]} 18. Rad1
{[%clk 0:02:33.8]} 18... Rxd1 {[%clk 0:02:47.5]} 19. Rxd1 {[%clk 0:02:34.7]}
19... Rd8 {[%clk 0:02:46.2]} 20. Bc7 {[%clk 0:02:14.1]} 20... Rxd1+ {[%clk
0:02:43.8]} 21. Qxd1 {[%clk 0:02:15]} 21... Na5 {[%clk 0:02:33.9]} 22. g4 {[%clk
0:01:23.7]} 22... Qh7 {[%clk 0:02:32.6]} 23. Qd7 {[%clk 0:01:16.6]} 23... Bxe4
{[%clk 0:02:31.1]} 24. Qe8+ {[%clk 0:00:38.2]} 24... Bf8 {[%clk 0:02:30.4]} 25.
Bd6 {[%clk 0:00:38.6]} 25... Qg6 {[%clk 0:02:29.4]} 26. f3 {[%clk 0:00:38.4]}
26... Bc6 {[%clk 0:02:23.7]} 27. Qxf8+ {[%clk 0:00:37.5]} 27... Kh7 {[%clk
0:02:23.2]} 28. h5 {[%clk 0:00:09.3]} 28... Qf6 {[%clk 0:02:22.7]} 29. Kf2
{[%clk 0:00:09.5]} 29... Nc4 {[%clk 0:02:17.3]} 30. Kg3 {[%clk 0:00:06.4]} 30...
e5 {[%clk 0:02:11.1]} 31. Be7 {[%clk 0:00:05.9]} 31... Qf4+ {[%clk 0:02:10.4]}
32. Kf2 {[%clk 0:00:02.7]} 32... Nxb2 {[%clk 0:02:09.9]} 33. Bd6 {[%clk
0:00:01.9]} 33... Nd3+ {[%clk 0:02:08.5]} 34. Kg1 {[%clk 0:00:02.1]} 34... Bxf3
{[%clk 0:02:05.9]} 35. Bxf3 {[%clk 0:00:02.5]} 35... Qxf3 {[%clk 0:02:05.9]} 36.
Qc8 {[%clk 0:00:02.4]} 36... f6 {[%clk 0:01:54.1]} 37. Qf5+ {[%clk 0:00:02.4]}
37... Qxf5 {[%clk 0:01:53.8]} 38. gxf5 {[%clk 0:00:03.3]} 38... c4 {[%clk
0:01:51]} 39. Bb8 {[%clk 0:00:03.1]} 39... a6 {[%clk 0:01:50.6]} 40. a4 {[%clk
0:00:03.2]} 40... b5 {[%clk 0:01:49.9]} 41. axb5 {[%clk 0:00:03.4]} 41... axb5
{[%clk 0:01:50.8]} 42. Bd6 {[%clk 0:00:04.2]} 42... Nf4 {[%clk 0:01:49.6]} 43.
Kf2 {[%clk 0:00:02.5]} 43... Nxh5 {[%clk 0:01:50]} 44. Ke3 {[%clk 0:00:02.8]}
44... g6 {[%clk 0:01:50.5]} 45. fxg6+ {[%clk 0:00:02.8]} 45... Kxg6 {[%clk
0:01:50.4]} 46. Ke4 {[%clk 0:00:03.4]} 46... Nf4 {[%clk 0:01:49.9]} 47. Bc5
{[%clk 0:00:03.3]} 47... h5 {[%clk 0:01:50.2]} 48. Bf2 {[%clk 0:00:03.6]} 48...
Kg5 {[%clk 0:01:50.3]} 49. Kf3 {[%clk 0:00:03.1]} 49... f5 {[%clk 0:01:46.5]}
50. Bg3 {[%clk 0:00:02.7]} 50... h4 {[%clk 0:01:46.3]} 51. Bf2 {[%clk 0:00:03]}
51... Ng6 {[%clk 0:01:46]} 52. Ke3 {[%clk 0:00:03.1]} 52... Kg4 {[%clk
0:01:45.5]} 53. Bg1 {[%clk 0:00:03.3]} 53... h3 {[%clk 0:01:45.6]} 54. Kf2
{[%clk 0:00:03.6]} 54... f4 {[%clk 0:01:46]} 55. Bh2 {[%clk 0:00:04]} 55... e4
{[%clk 0:01:46.6]} 56. Kg1 {[%clk 0:00:04.7]} 56... Ne5 {[%clk 0:01:47.1]} 57.
Kh1 {[%clk 0:00:05.2]} 57... e3 {[%clk 0:01:46.3]} 58. Bg1 {[%clk 0:00:05.3]}
58... Nf3 {[%clk 0:01:44.5]} 59. Bf2 {[%clk 0:00:04.1]} 59... Ng5 {[%clk
0:01:38.8]} 60. Be1 {[%clk 0:00:04]} 60... Ne4 {[%clk 0:01:38.7]} 61. Kh2 {[%clk
0:00:04]} 61... f3 {[%clk 0:01:37.8]} 62. Kh1 {[%clk 0:00:03.2]} 62... f2 {[%clk
0:01:37.4]} 63. Kh2 {[%clk 0:00:03.5]} 63... b4 {[%clk 0:01:35.8]} 64. Kh1
{[%clk 0:00:02.7]} 64... fxe1=Q+ {[%clk 0:01:35.4]} 65. Kh2 {[%clk 0:00:02.9]}
65... Qg3+ {[%clk 0:01:36]} 66. Kh1 {[%clk 0:00:02.8]} 66... Nf2# {[%clk
0:01:36.9]} 0-1

[Event "Late-Titled-Tuesday-Blitz-March-19-2024"]
[Site "Chess.com"]
[Date "2024.03.19"]
[Round "4"]
[White "Evgeny81"]
[Black "Young_Catalan_Player09"]
[Result "0-1"]
[WhiteElo "2776"]
[BlackElo "2605"]
[TimeControl "180+1"]
[EndTime "14:38:55 PDT"]
[Termination "Young_Catalan_Player09 won on time"]

1. e4 {[%clk 0:03:00.9]} 1... c5 {[%clk 0:02:57.3]} 2. Nf3 {[%clk 0:03:01]} 2...
d6 {[%clk 0:02:57.6]} 3. d4 {[%clk 0:03:01.4]} 3... cxd4 {[%clk 0:02:58.5]} 4.
Nxd4 {[%clk 0:03:01.8]} 4... Nf6 {[%clk 0:02:58.9]} 5. Nc3 {[%clk 0:03:02.4]}
5... a6 {[%clk 0:02:59.4]} 6. Bg5 {[%clk 0:03:01]} 6... e6 {[%clk 0:02:59.2]} 7.
Qd2 {[%clk 0:03:00.1]} 7... h6 {[%clk 0:02:56.5]} 8. Be3 {[%clk 0:02:57.4]} 8...
Ng4 {[%clk 0:02:53.8]} 9. O-O-O {[%clk 0:02:57.5]} 9... Nxe3 {[%clk 0:02:53.2]}
10. Qxe3 {[%clk 0:02:58.4]} 10... Be7 {[%clk 0:02:52.5]} 11. f4 {[%clk
0:02:57.8]} 11... O-O {[%clk 0:02:44.4]} 12. h4 {[%clk 0:02:56.4]} 12... b5
{[%clk 0:02:38.4]} 13. g3 {[%clk 0:02:54.4]} 13... b4 {[%clk 0:02:35.4]} 14.
Nce2 {[%clk 0:02:53.9]} 14... Bb7 {[%clk 0:02:32.6]} 15. Bg2 {[%clk 0:02:53.8]}
15... Nd7 {[%clk 0:02:31.2]} 16. Rhg1 {[%clk 0:02:47.3]} 16... a5 {[%clk
0:02:24]} 17. e5 {[%clk 0:02:42.9]} 17... Bxg2 {[%clk 0:02:17.7]} 18. Rxg2
{[%clk 0:02:43.2]} 18... d5 {[%clk 0:02:12.6]} 19. Nc6 {[%clk 0:02:39.3]} 19...
Qe8 {[%clk 0:02:12.9]} 20. f5 {[%clk 0:02:36.7]} 20... Rc8 {[%clk 0:02:08.8]}
21. Nxe7+ {[%clk 0:02:24.8]} 21... Qxe7 {[%clk 0:02:09]} 22. Nd4 {[%clk
0:02:25.7]} 22... exf5 {[%clk 0:02:07.6]} 23. Nxf5 {[%clk 0:02:23.8]} 23... Qe6
{[%clk 0:02:07.3]} 24. g4 {[%clk 0:02:15.5]} 24... Nxe5 {[%clk 0:02:01.6]} 25.
Rxd5 {[%clk 0:02:00.6]} 25... Rfe8 {[%clk 0:01:44.7]} 26. Rgd2 {[%clk 0:01:14]}
26... Nc4 {[%clk 0:01:42.3]} 27. Qd4 {[%clk 0:01:14.2]} 27... Qg6 {[%clk
0:01:24.9]} 28. Rd1 {[%clk 0:01:01.2]} 28... a4 {[%clk 0:01:24.6]} 29. Kb1
{[%clk 0:00:57.3]} 29... b3 {[%clk 0:01:23.9]} 30. axb3 {[%clk 0:00:45.3]} 30...
axb3 {[%clk 0:01:20.6]} 31. cxb3 {[%clk 0:00:43.4]} 31... Ne3 {[%clk 0:01:10.2]}
32. h5 {[%clk 0:00:43.5]} 32... Qh7 {[%clk 0:01:06.7]} 33. Re1 {[%clk
0:00:36.7]} 33... Nxd5 {[%clk 0:01:01.6]} 34. Rxe8+ {[%clk 0:00:37.6]} 34...
Rxe8 {[%clk 0:01:01.9]} 35. Qxd5 {[%clk 0:00:38.2]} 35... g6 {[%clk 0:00:58.8]}
36. Qc6 {[%clk 0:00:13.6]} 36... Rf8 {[%clk 0:00:29.1]} 37. Ne7+ {[%clk
0:00:09.2]} 37... Kh8 {[%clk 0:00:28.1]} 38. Qc3+ {[%clk 0:00:06.4]} 38... Qg7
{[%clk 0:00:27.8]} 39. hxg6 {[%clk 0:00:06.9]} 39... Qxc3 {[%clk 0:00:23.6]} 40.
bxc3 {[%clk 0:00:07.8]} 40... Kg7 {[%clk 0:00:23.9]} 41. gxf7 {[%clk 0:00:07.2]}
41... Rxf7 {[%clk 0:00:23.9]} 42. Nf5+ {[%clk 0:00:07.4]} 42... Kg6 {[%clk
0:00:24.4]} 43. b4 {[%clk 0:00:07.6]} 43... h5 {[%clk 0:00:22.5]} 0-1